[Event "*** Titled Tuesday Blitz"]
[Site "Chess.com"]
[Date "2019.04.02"]
[Round "5"]
[White "alturas_pacificas"]
[Black "Caisachess"]
[Result "0-1"]
[WhiteElo "2269"]
[BlackElo "2411"]
[TimeControl "180+2"]
[EndTime "15:02:45 PDT"]
[Termination "Caisachess won by resignation"]

1. d4 {[%clk 0:02:50.5]} 1... Nf6 {[%clk 0:02:58.6]} 2. Bf4 {[%clk 0:02:51.8]}
2... e6 {[%clk 0:02:58.9]} 3. e3 {[%clk 0:02:53.2]} 3... d5 {[%clk 0:03:00.5]}
4. Nd2 {[%clk 0:02:53.5]} 4... c5 {[%clk 0:03:01.8]} 5. c3 {[%clk 0:02:54]} 5...
Bd6 {[%clk 0:03:01.9]} 6. Bg3 {[%clk 0:02:54.2]} 6... O-O {[%clk 0:03:00.3]} 7.
Ngf3 {[%clk 0:02:55.4]} 7... b6 {[%clk 0:03:01.7]} 8. Bd3 {[%clk 0:02:55.5]}
8... Ba6 {[%clk 0:02:59.7]} 9. Bc2 {[%clk 0:02:52]} 9... Nc6 {[%clk 0:02:53.8]}
10. Ne5 {[%clk 0:02:52.3]} 10... Qc7 {[%clk 0:02:53.2]} 11. f4 {[%clk
0:02:53.1]} 11... Ne7 {[%clk 0:02:49.9]} 12. Qf3 {[%clk 0:02:51.9]} 12... Nf5
{[%clk 0:02:48.4]} 13. Bf2 {[%clk 0:02:48.6]} 13... Be7 {[%clk 0:02:41.4]} 14.
g4 {[%clk 0:02:36.3]} 14... Nd6 {[%clk 0:02:40.9]} 15. g5 {[%clk 0:02:37.4]}
15... Nfe4 {[%clk 0:02:33.5]} 16. Nxe4 {[%clk 0:02:37.7]} 16... Nxe4 {[%clk
0:02:34.8]} 17. Bxe4 {[%clk 0:02:39]} 17... dxe4 {[%clk 0:02:36.1]} 18. Qg4
{[%clk 0:02:19.1]} 18... cxd4 {[%clk 0:02:32]} 19. exd4 {[%clk 0:02:21]} 19...
f5 {[%clk 0:01:57.8]} 20. gxf6 {[%clk 0:02:20.8]} 20... Rxf6 {[%clk 0:01:57.8]}
21. Rg1 {[%clk 0:02:18.2]} 21... Bf8 {[%clk 0:01:54.5]} 22. Bh4 {[%clk
0:02:12.9]} 22... Rf5 {[%clk 0:01:52.2]} 23. Bg5 {[%clk 0:01:39.3]} 23... Bb7
{[%clk 0:01:36.4]} 24. h4 {[%clk 0:01:16.8]} 24... b5 {[%clk 0:01:37.1]} 25. h5
{[%clk 0:01:09.3]} 25... b4 {[%clk 0:01:37.9]} 26. c4 {[%clk 0:01:01.9]} 26...
b3 {[%clk 0:01:09.2]} 27. axb3 {[%clk 0:00:59.7]} 27... Qb6 {[%clk 0:01:10.5]}
28. Be7 {[%clk 0:00:45.1]} 28... Qxd4 {[%clk 0:00:30.2]} 29. Bxf8 {[%clk
0:00:34.8]} 29... Qe3+ {[%clk 0:00:29.3]} 30. Kf1 {[%clk 0:00:36.2]} 30... Rxf4+
{[%clk 0:00:29.7]} 0-1

[Event "*** Titled Tuesday Blitz"]
[Site "Chess.com"]
[Date "2019.04.02"]
[Round "5"]
[White "advantageLucy"]
[Black "Eltarolo"]
[Result "1-0"]
[WhiteElo "2500"]
[BlackElo "2450"]
[TimeControl "180+2"]
[EndTime "15:02:50 PDT"]
[Termination "advantageLucy won by checkmate"]

1. d4 {[%clk 0:03:01.9]} 1... d5 {[%clk 0:03:00.2]} 2. Bf4 {[%clk 0:03:02.6]}
2... Nf6 {[%clk 0:03:00.9]} 3. e3 {[%clk 0:03:03.1]} 3... c5 {[%clk 0:03:02.2]}
4. c3 {[%clk 0:03:03.8]} 4... Nc6 {[%clk 0:03:03.4]} 5. Nd2 {[%clk 0:03:04.9]}
5... cxd4 {[%clk 0:03:01.8]} 6. exd4 {[%clk 0:03:05.9]} 6... Bf5 {[%clk
0:02:59.2]} 7. Ngf3 {[%clk 0:02:59.3]} 7... e6 {[%clk 0:02:55.3]} 8. Qb3 {[%clk
0:02:54.7]} 8... Qc8 {[%clk 0:02:44.8]} 9. Nh4 {[%clk 0:02:43.2]} 9... Bg6
{[%clk 0:02:44.6]} 10. Nxg6 {[%clk 0:02:39]} 10... hxg6 {[%clk 0:02:46.5]} 11.
h3 {[%clk 0:02:37]} 11... Be7 {[%clk 0:02:43.5]} 12. Bd3 {[%clk 0:02:37.8]}
12... O-O {[%clk 0:02:33.5]} 13. O-O {[%clk 0:02:38.9]} 13... Qd7 {[%clk
0:02:33.2]} 14. Rfe1 {[%clk 0:02:35.8]} 14... a6 {[%clk 0:02:32.8]} 15. Nf3
{[%clk 0:02:33.5]} 15... b5 {[%clk 0:02:30.8]} 16. a4 {[%clk 0:02:32.4]} 16...
Na5 {[%clk 0:02:30]} 17. Qc2 {[%clk 0:02:24.7]} 17... Nc4 {[%clk 0:02:31]} 18.
b3 {[%clk 0:02:21.8]} 18... Nd6 {[%clk 0:02:31.4]} 19. Ne5 {[%clk 0:02:11.2]}
19... Qb7 {[%clk 0:02:30.4]} 20. f3 {[%clk 0:01:32.2]} 20... Rfc8 {[%clk
0:02:28.1]} 21. Qd2 {[%clk 0:01:32.9]} 21... Nd7 {[%clk 0:02:01.4]} 22. axb5
{[%clk 0:01:28.3]} 22... axb5 {[%clk 0:01:54.5]} 23. Rxa8 {[%clk 0:01:24.4]}
23... Rxa8 {[%clk 0:01:54.3]} 24. Nxg6 {[%clk 0:01:23.8]} 24... fxg6 {[%clk
0:01:23.8]} 25. Rxe6 {[%clk 0:01:24.6]} 25... Nf8 {[%clk 0:01:18.7]} 26. Rxd6
{[%clk 0:01:25.2]} 26... Bxd6 {[%clk 0:01:18.5]} 27. Bxd6 {[%clk 0:01:27.1]}
27... Ra1+ {[%clk 0:01:10.2]} 28. Kh2 {[%clk 0:01:28.3]} 28... Qd7 {[%clk
0:01:08.6]} 29. Be5 {[%clk 0:01:22.9]} 29... Qc6 {[%clk 0:00:49.9]} 30. Qg5
{[%clk 0:01:06.5]} 30... Qxc3 {[%clk 0:00:11.2]} 31. Qe7 {[%clk 0:01:01.8]}
31... Ne6 {[%clk 0:00:08]} 32. Qxe6+ {[%clk 0:01:02.6]} 32... Kh7 {[%clk
0:00:08.7]} 33. Qxg6+ {[%clk 0:01:03.4]} 33... Kg8 {[%clk 0:00:09.2]} 34. Qxg7#
{[%clk 0:01:04.7]} 1-0

[Event "*** Titled Tuesday Blitz"]
[Site "Chess.com"]
[Date "2019.04.02"]
[Round "5"]
[White "Superfelix"]
[Black "Heineccius"]
[Result "0-1"]
[WhiteElo "2423"]
[BlackElo "2490"]
[TimeControl "180+2"]
[EndTime "15:02:52 PDT"]
[Termination "Heineccius won by checkmate"]

1. e4 {[%clk 0:03:01.9]} 1... c5 {[%clk 0:03:00.8]} 2. Nf3 {[%clk 0:03:02]} 2...
e6 {[%clk 0:03:01.6]} 3. g3 {[%clk 0:03:01.9]} 3... a6 {[%clk 0:02:59.6]} 4. Bg2
{[%clk 0:03:02.8]} 4... Qc7 {[%clk 0:03:00.5]} 5. O-O {[%clk 0:03:03.7]} 5... b5
{[%clk 0:02:56.5]} 6. Re1 {[%clk 0:03:02.7]} 6... Bb7 {[%clk 0:02:56.9]} 7. b3
{[%clk 0:03:04.1]} 7... Nc6 {[%clk 0:02:56.4]} 8. Bb2 {[%clk 0:03:04.7]} 8... d6
{[%clk 0:02:56.5]} 9. a4 {[%clk 0:03:05.6]} 9... Nf6 {[%clk 0:02:55.8]} 10. d3
{[%clk 0:02:58.7]} 10... Be7 {[%clk 0:02:54.7]} 11. Nc3 {[%clk 0:02:58.7]} 11...
b4 {[%clk 0:02:53.8]} 12. Ne2 {[%clk 0:02:59]} 12... O-O {[%clk 0:02:54.3]} 13.
h3 {[%clk 0:02:57.8]} 13... Nd7 {[%clk 0:02:51.8]} 14. Nf4 {[%clk 0:02:57.8]}
14... Bf6 {[%clk 0:02:51.2]} 15. Qc1 {[%clk 0:02:58.2]} 15... Bxb2 {[%clk
0:02:41]} 16. Qxb2 {[%clk 0:03:00.1]} 16... Nde5 {[%clk 0:02:42]} 17. Nxe5
{[%clk 0:02:51.2]} 17... dxe5 {[%clk 0:02:42.4]} 18. Ne2 {[%clk 0:02:51.3]}
18... Rfd8 {[%clk 0:02:41]} 19. Rf1 {[%clk 0:02:49.4]} 19... Nd4 {[%clk
0:02:40.5]} 20. Rae1 {[%clk 0:02:48.3]} 20... a5 {[%clk 0:02:37.5]} 21. f4
{[%clk 0:02:49]} 21... Ba6 {[%clk 0:02:33.7]} 22. f5 {[%clk 0:02:45.5]} 22...
Qe7 {[%clk 0:02:31]} 23. Qc1 {[%clk 0:02:41.3]} 23... f6 {[%clk 0:02:21]} 24. g4
{[%clk 0:02:39.8]} 24... Rac8 {[%clk 0:02:17.2]} 25. Ng3 {[%clk 0:02:37.3]}
25... Nxc2 {[%clk 0:02:01.3]} 26. Qxc2 {[%clk 0:02:36.9]} 26... Rxd3 {[%clk
0:01:55.3]} 27. Rf3 {[%clk 0:02:34.7]} 27... c4 {[%clk 0:01:52.2]} 28. bxc4
{[%clk 0:02:29.5]} 28... Rxf3 {[%clk 0:01:46.4]} 29. Bxf3 {[%clk 0:02:31.4]}
29... Rxc4 {[%clk 0:01:45.8]} 30. Qd2 {[%clk 0:02:22.8]} 30... h6 {[%clk
0:01:30.7]} 31. fxe6 {[%clk 0:02:14.5]} 31... Rd4 {[%clk 0:01:06.8]} 32. Nf5
{[%clk 0:02:08]} 32... Rxd2 {[%clk 0:01:07.2]} 33. Nxe7+ {[%clk 0:02:08.8]}
33... Kf8 {[%clk 0:01:06]} 34. Ng6+ {[%clk 0:01:58.7]} 34... Ke8 {[%clk
0:01:06.9]} 35. Rc1 {[%clk 0:01:59.4]} 35... b3 {[%clk 0:01:06.6]} 36. Rc6
{[%clk 0:01:56.5]} 36... b2 {[%clk 0:00:46.4]} 37. Rb6 {[%clk 0:01:57]} 37...
Kd8 {[%clk 0:00:24.4]} 38. e7+ {[%clk 0:01:48.4]} 38... Kd7 {[%clk 0:00:21.7]}
39. g5 {[%clk 0:01:44.2]} 39... f5 {[%clk 0:00:17.1]} 40. exf5 {[%clk
0:01:45.2]} 40... e4 {[%clk 0:00:15.7]} 41. f6 {[%clk 0:01:42.4]} 41... exf3
{[%clk 0:00:14.2]} 42. f7 {[%clk 0:01:43.7]} 42... f2+ {[%clk 0:00:12.2]} 43.
Kg2 {[%clk 0:01:38.6]} 43... f1=Q+ {[%clk 0:00:12.9]} 44. Kg3 {[%clk 0:01:40]}
44... Qf2+ {[%clk 0:00:12.9]} 45. Kg4 {[%clk 0:01:41.3]} 45... Be2# {[%clk
0:00:11.9]} 0-1

[Event "*** Titled Tuesday Blitz"]
[Site "Chess.com"]
[Date "2019.04.02"]
[Round "5"]
[White "norwaytoadog"]
[Black "Chessmatus"]
[Result "1-0"]
[WhiteElo "2233"]
[BlackElo "2329"]
[TimeControl "180+2"]
[EndTime "15:02:53 PDT"]
[Termination "norwaytoadog won by resignation"]

1. e4 {[%clk 0:03:01.8]} 1... c5 {[%clk 0:02:59.7]} 2. Nf3 {[%clk 0:03:02.7]}
2... d6 {[%clk 0:03:00.8]} 3. Bb5+ {[%clk 0:03:03.5]} 3... Nd7 {[%clk
0:02:58.9]} 4. d4 {[%clk 0:03:04.3]} 4... cxd4 {[%clk 0:02:59.5]} 5. Qxd4 {[%clk
0:03:05.5]} 5... a6 {[%clk 0:03:00.7]} 6. Bxd7+ {[%clk 0:03:06.2]} 6... Bxd7
{[%clk 0:03:01.8]} 7. c4 {[%clk 0:03:07.4]} 7... e5 {[%clk 0:02:59.5]} 8. Qd3
{[%clk 0:03:04.5]} 8... Qc7 {[%clk 0:03:00.4]} 9. Nc3 {[%clk 0:02:58.4]} 9...
Rc8 {[%clk 0:02:51.3]} 10. b3 {[%clk 0:02:51.6]} 10... b5 {[%clk 0:02:51.4]} 11.
Nd5 {[%clk 0:02:51]} 11... Qb7 {[%clk 0:02:52.3]} 12. Nd2 {[%clk 0:02:45.2]}
12... Ne7 {[%clk 0:02:46.2]} 13. O-O {[%clk 0:02:29.5]} 13... Nxd5 {[%clk
0:02:38.1]} 14. exd5 {[%clk 0:02:15.9]} 14... Be7 {[%clk 0:02:38.4]} 15. Qg3
{[%clk 0:02:05.8]} 15... O-O {[%clk 0:02:31.8]} 16. Rb1 {[%clk 0:01:55.8]} 16...
Bf5 {[%clk 0:02:27.6]} 17. Rb2 {[%clk 0:01:52.2]} 17... Bg6 {[%clk 0:02:02.1]}
18. Nf3 {[%clk 0:01:42.2]} 18... Qc7 {[%clk 0:01:41.8]} 19. Bg5 {[%clk
0:01:25.5]} 19... Bxg5 {[%clk 0:01:39.3]} 20. Nxg5 {[%clk 0:01:22.2]} 20... bxc4
{[%clk 0:01:39]} 21. Rc1 {[%clk 0:01:14]} 21... c3 {[%clk 0:01:39.6]} 22. Re2
{[%clk 0:01:10.9]} 22... Qc5 {[%clk 0:01:39]} 23. h4 {[%clk 0:01:03.9]} 23... c2
{[%clk 0:01:30.9]} 24. Qf3 {[%clk 0:00:57.2]} 24... h6 {[%clk 0:00:49.5]} 25. h5
{[%clk 0:00:56.6]} 25... hxg5 {[%clk 0:00:47.3]} 26. hxg6 {[%clk 0:00:57.6]}
26... fxg6 {[%clk 0:00:48.5]} 27. Qe4 {[%clk 0:00:54.4]} 27... Qa3 {[%clk
0:00:17.6]} 28. Rcxc2 {[%clk 0:00:47.9]} 28... Rce8 {[%clk 0:00:17.2]} 29. Qxg6
{[%clk 0:00:42.1]} 29... Re7 {[%clk 0:00:16.5]} 30. Rc6 {[%clk 0:00:39.1]} 30...
Qxa2 {[%clk 0:00:16.5]} 31. Rxa2 {[%clk 0:00:39.2]} 1-0

[Event "*** Titled Tuesday Blitz"]
[Site "Chess.com"]
[Date "2019.04.02"]
[Round "5"]
[White "scrapnel"]
[Black "FERNANDEZL1983"]
[Result "0-1"]
[WhiteElo "2525"]
[BlackElo "2440"]
[TimeControl "180+2"]
[EndTime "15:02:53 PDT"]
[Termination "FERNANDEZL1983 won by resignation"]

1. d4 {[%clk 0:03:01.9]} 1... Nf6 {[%clk 0:03:00.2]} 2. c4 {[%clk 0:03:02.1]}
2... g6 {[%clk 0:03:00.7]} 3. Nc3 {[%clk 0:03:02.4]} 3... Bg7 {[%clk 0:03:01.7]}
4. e4 {[%clk 0:03:02.8]} 4... d6 {[%clk 0:03:02.9]} 5. Be2 {[%clk 0:03:04.1]}
5... O-O {[%clk 0:03:03.9]} 6. Be3 {[%clk 0:03:05.1]} 6... Nbd7 {[%clk
0:03:00.9]} 7. Qc2 {[%clk 0:02:50.9]} 7... c5 {[%clk 0:03:01.7]} 8. d5 {[%clk
0:02:51.1]} 8... Ne5 {[%clk 0:03:00]} 9. h3 {[%clk 0:02:49.9]} 9... a6 {[%clk
0:03:00.2]} 10. f4 {[%clk 0:02:49.6]} 10... Ned7 {[%clk 0:03:00.7]} 11. a4
{[%clk 0:02:48.2]} 11... Rb8 {[%clk 0:03:00.5]} 12. g4 {[%clk 0:02:44.2]} 12...
e6 {[%clk 0:02:57.9]} 13. g5 {[%clk 0:02:43.1]} 13... Ne8 {[%clk 0:02:58.3]} 14.
Rd1 {[%clk 0:02:35.7]} 14... exd5 {[%clk 0:02:55.2]} 15. cxd5 {[%clk 0:02:21]}
15... b5 {[%clk 0:02:54.6]} 16. Nf3 {[%clk 0:02:09]} 16... b4 {[%clk 0:02:53.4]}
17. Nb1 {[%clk 0:02:05.1]} 17... b3 {[%clk 0:02:54.5]} 18. Qc1 {[%clk
0:02:03.2]} 18... Qa5+ {[%clk 0:02:53.2]} 19. Nc3 {[%clk 0:01:57.5]} 19... Bxc3+
{[%clk 0:02:53]} 20. Qxc3 {[%clk 0:01:57.8]} 20... Qxc3+ {[%clk 0:02:53.7]} 21.
bxc3 {[%clk 0:01:58.3]} 21... Nb6 {[%clk 0:02:55]} 22. a5 {[%clk 0:01:51]} 22...
Na4 {[%clk 0:02:54.3]} 23. Kd2 {[%clk 0:01:38.3]} 23... Nc7 {[%clk 0:02:46.7]}
24. c4 {[%clk 0:01:28]} 24... Re8 {[%clk 0:02:44.6]} 25. Bd3 {[%clk 0:01:23.7]}
25... Nb2 {[%clk 0:02:40.6]} 26. Rb1 {[%clk 0:01:17.3]} 26... Nxd3 {[%clk
0:02:40.8]} 27. Kxd3 {[%clk 0:01:18.4]} 27... Rxe4 {[%clk 0:02:41.4]} 28. Nd2
{[%clk 0:01:13.5]} 28... Re8 {[%clk 0:02:36.8]} 29. Rxb3 {[%clk 0:01:13.9]}
29... Bf5+ {[%clk 0:02:37.7]} 30. Ke2 {[%clk 0:01:13.1]} 30... Rxb3 {[%clk
0:02:38.7]} 31. Nxb3 {[%clk 0:01:14]} 31... Rb8 {[%clk 0:02:40.4]} 32. Nd2
{[%clk 0:01:11.7]} 32... f6 {[%clk 0:02:39.9]} 33. gxf6 {[%clk 0:01:10]} 33...
Ne8 {[%clk 0:02:40.9]} 34. h4 {[%clk 0:00:59.8]} 34... Nxf6 {[%clk 0:02:41.6]}
35. Rc1 {[%clk 0:00:53.1]} 35... Rb2 {[%clk 0:02:40.9]} 36. Kf3 {[%clk
0:00:52.9]} 36... Ra2 {[%clk 0:02:35.1]} 37. Rc3 {[%clk 0:00:52.7]} 37... Rxa5
{[%clk 0:02:35.1]} 38. Rb3 {[%clk 0:00:53.9]} 38... Ra1 {[%clk 0:02:26.6]} 39.
Rb6 {[%clk 0:00:54.5]} 39... Ne8 {[%clk 0:02:22.2]} 40. Rb8 {[%clk 0:00:52.2]}
40... Kf8 {[%clk 0:02:22.9]} 41. Ne4 {[%clk 0:00:41]} 41... Bxe4+ {[%clk
0:02:15.7]} 42. Kxe4 {[%clk 0:00:41.9]} 42... a5 {[%clk 0:02:14.9]} 43. f5
{[%clk 0:00:42.3]} 43... gxf5+ {[%clk 0:02:15.7]} 44. Kxf5 {[%clk 0:00:42.5]}
44... Rf1+ {[%clk 0:02:11]} 45. Kg4 {[%clk 0:00:34.4]} 45... a4 {[%clk
0:02:08.1]} 46. Bh6+ {[%clk 0:00:30.8]} 46... Kf7 {[%clk 0:02:08.9]} 47. Rb7+
{[%clk 0:00:31.7]} 47... Kg6 {[%clk 0:02:08.9]} 48. Be3 {[%clk 0:00:26]} 48...
Nf6+ {[%clk 0:02:06.3]} 49. Kg3 {[%clk 0:00:26.9]} 49... a3 {[%clk 0:02:01.9]}
50. Ra7 {[%clk 0:00:27.7]} 50... Ra1 {[%clk 0:02:00.9]} 51. Bd2 {[%clk
0:00:24.7]} 51... Ne4+ {[%clk 0:02:00.3]} 0-1

[Event "*** Titled Tuesday Blitz"]
[Site "Chess.com"]
[Date "2019.04.02"]
[Round "5"]
[White "evgenyermolaev"]
[Black "12teen"]
[Result "0-1"]
[WhiteElo "2518"]
[BlackElo "2642"]
[TimeControl "180+2"]
[EndTime "15:02:56 PDT"]
[Termination "12teen won on time"]

1. e4 {[%clk 0:03:01.8]} 1... e5 {[%clk 0:03:01]} 2. Nf3 {[%clk 0:03:02.8]} 2...
Nc6 {[%clk 0:03:02.4]} 3. Bc4 {[%clk 0:03:03.8]} 3... Be7 {[%clk 0:03:03.2]} 4.
d4 {[%clk 0:03:04.1]} 4... exd4 {[%clk 0:02:58.6]} 5. Nxd4 {[%clk 0:03:04]} 5...
d6 {[%clk 0:02:59.6]} 6. Nc3 {[%clk 0:03:03.2]} 6... Nf6 {[%clk 0:02:57]} 7. Bg5
{[%clk 0:03:01.1]} 7... O-O {[%clk 0:02:56.5]} 8. Qd2 {[%clk 0:02:54.9]} 8...
Ne5 {[%clk 0:02:57.2]} 9. Be2 {[%clk 0:02:52.8]} 9... h6 {[%clk 0:02:48.5]} 10.
Bf4 {[%clk 0:02:43.5]} 10... Ng6 {[%clk 0:02:36.1]} 11. Be3 {[%clk 0:02:43.1]}
11... Ng4 {[%clk 0:02:34.8]} 12. Bxg4 {[%clk 0:02:43]} 12... Bxg4 {[%clk
0:02:35.3]} 13. f3 {[%clk 0:02:41.9]} 13... Bd7 {[%clk 0:02:35.9]} 14. O-O-O
{[%clk 0:02:40.3]} 14... c6 {[%clk 0:02:32.7]} 15. g4 {[%clk 0:02:11.4]} 15...
Ne5 {[%clk 0:02:33.8]} 16. Qe2 {[%clk 0:01:58.2]} 16... b5 {[%clk 0:02:33.4]}
17. Nf5 {[%clk 0:01:58.5]} 17... Bxf5 {[%clk 0:02:29.9]} 18. gxf5 {[%clk
0:01:59.2]} 18... Qa5 {[%clk 0:02:25.1]} 19. Rhg1 {[%clk 0:01:48.8]} 19... Kh7
{[%clk 0:02:25.7]} 20. Qg2 {[%clk 0:01:34.2]} 20... Bf6 {[%clk 0:02:26.1]} 21.
Bf2 {[%clk 0:01:11.2]} 21... Nc4 {[%clk 0:02:23.2]} 22. Bd4 {[%clk 0:01:08.9]}
22... Qb4 {[%clk 0:02:15.4]} 23. Nd5 {[%clk 0:01:00.7]} 23... cxd5 {[%clk
0:01:19.5]} 24. Bxf6 {[%clk 0:01:00.1]} 24... Rg8 {[%clk 0:01:05.6]} 25. Bxg7
{[%clk 0:00:14.1]} 25... d4 {[%clk 0:01:02.3]} 26. c3 {[%clk 0:00:09.5]} 26...
dxc3 {[%clk 0:00:46]} 27. bxc3 {[%clk 0:00:10.7]} 27... Qa3+ {[%clk 0:00:44.7]}
28. Kb1 {[%clk 0:00:12.1]} 28... b4 {[%clk 0:00:37.4]} 0-1

[Event "*** Titled Tuesday Blitz"]
[Site "Chess.com"]
[Date "2019.04.02"]
[Round "5"]
[White "PowerThinking2650"]
[Black "MathiasWomacka"]
[Result "1-0"]
[WhiteElo "2392"]
[BlackElo "2257"]
[TimeControl "180+2"]
[EndTime "15:03:03 PDT"]
[Termination "PowerThinking2650 won by resignation"]

1. e4 {[%clk 0:02:58.2]} 1... c5 {[%clk 0:03:00.8]} 2. Nf3 {[%clk 0:02:57.2]}
2... d6 {[%clk 0:03:01.1]} 3. d4 {[%clk 0:02:57.6]} 3... cxd4 {[%clk 0:03:03]}
4. Nxd4 {[%clk 0:02:58.1]} 4... Nf6 {[%clk 0:03:03.9]} 5. Nc3 {[%clk 0:02:59]}
5... a6 {[%clk 0:03:04.9]} 6. Be3 {[%clk 0:02:59.6]} 6... e5 {[%clk 0:03:05.6]}
7. Nb3 {[%clk 0:03:00.4]} 7... Be7 {[%clk 0:03:06.4]} 8. f3 {[%clk 0:03:00.6]}
8... Be6 {[%clk 0:03:06.9]} 9. Qd2 {[%clk 0:03:01.7]} 9... O-O {[%clk 0:03:07]}
10. O-O-O {[%clk 0:03:01.3]} 10... Nbd7 {[%clk 0:03:07.8]} 11. g4 {[%clk
0:03:01.6]} 11... Qc7 {[%clk 0:03:08.4]} 12. g5 {[%clk 0:03:00.5]} 12... Nh5
{[%clk 0:03:08]} 13. h4 {[%clk 0:02:53.4]} 13... b5 {[%clk 0:03:03.3]} 14. Nd5
{[%clk 0:02:53.3]} 14... Bxd5 {[%clk 0:03:02.2]} 15. exd5 {[%clk 0:02:54.6]}
15... Nb6 {[%clk 0:03:03.1]} 16. Na5 {[%clk 0:02:52.4]} 16... Nxd5 {[%clk
0:03:02.7]} 17. Qxd5 {[%clk 0:02:51]} 17... Qxa5 {[%clk 0:03:03.1]} 18. Bh3
{[%clk 0:02:40.5]} 18... Qa4 {[%clk 0:02:31.5]} 19. Bg4 {[%clk 0:01:47.5]} 19...
Nf4 {[%clk 0:02:31.2]} 20. Bxf4 {[%clk 0:01:25.9]} 20... Qxf4+ {[%clk
0:02:31.2]} 21. Kb1 {[%clk 0:01:26.1]} 21... Rab8 {[%clk 0:02:18.5]} 22. Rde1
{[%clk 0:01:19]} 22... Rfe8 {[%clk 0:01:27.5]} 23. Re4 {[%clk 0:01:17.4]} 23...
Qg3 {[%clk 0:01:28.6]} 24. g6 {[%clk 0:01:11.5]} 24... hxg6 {[%clk 0:01:26.8]}
25. h5 {[%clk 0:01:12.4]} 25... gxh5 {[%clk 0:01:02.6]} 26. Bxh5 {[%clk
0:01:11.9]} 26... Rf8 {[%clk 0:01:03.3]} 27. Rg4 {[%clk 0:01:09.5]} 27... Qf2
{[%clk 0:01:02.4]} 28. Qe4 {[%clk 0:00:57.7]} 28... Qd2 {[%clk 0:00:37.9]} 29.
Bxf7+ {[%clk 0:00:36]} 29... Rxf7 {[%clk 0:00:27.5]} 30. Qh7+ {[%clk 0:00:36.2]}
1-0

[Event "*** Titled Tuesday Blitz"]
[Site "Chess.com"]
[Date "2019.04.02"]
[Round "5"]
[White "nutibara"]
[Black "ruvat"]
[Result "1-0"]
[WhiteElo "2367"]
[BlackElo "2279"]
[TimeControl "180+2"]
[EndTime "15:03:05 PDT"]
[Termination "nutibara won by resignation"]

1. e4 {[%clk 0:03:01.9]} 1... d6 {[%clk 0:03:00.6]} 2. d4 {[%clk 0:03:02.7]}
2... Nf6 {[%clk 0:03:00.8]} 3. f3 {[%clk 0:03:03.9]} 3... g6 {[%clk 0:02:59.7]}
4. Be3 {[%clk 0:03:04.9]} 4... Bg7 {[%clk 0:03:00.6]} 5. Qd2 {[%clk 0:03:06.3]}
5... c6 {[%clk 0:03:01.5]} 6. c4 {[%clk 0:03:07.5]} 6... a6 {[%clk 0:03:01.4]}
7. Nc3 {[%clk 0:03:08.7]} 7... b5 {[%clk 0:03:01.5]} 8. a3 {[%clk 0:03:07.9]}
8... O-O {[%clk 0:03:00.8]} 9. Bd3 {[%clk 0:02:57.1]} 9... Nbd7 {[%clk
0:03:00.3]} 10. Nge2 {[%clk 0:02:57.4]} 10... bxc4 {[%clk 0:02:55.3]} 11. Bxc4
{[%clk 0:02:58.3]} 11... d5 {[%clk 0:02:56.2]} 12. Ba2 {[%clk 0:02:58.8]} 12...
dxe4 {[%clk 0:02:55]} 13. fxe4 {[%clk 0:02:59.2]} 13... e5 {[%clk 0:02:45.7]}
14. d5 {[%clk 0:02:05.5]} 14... cxd5 {[%clk 0:02:44.9]} 15. exd5 {[%clk
0:02:06.3]} 15... Ng4 {[%clk 0:02:40.6]} 16. O-O {[%clk 0:01:59.8]} 16... Nxe3
{[%clk 0:02:38.7]} 17. Qxe3 {[%clk 0:01:59.8]} 17... Qb6 {[%clk 0:02:33]} 18.
Qxb6 {[%clk 0:01:47.5]} 18... Nxb6 {[%clk 0:02:34.9]} 19. d6 {[%clk 0:01:47.8]}
19... Ra7 {[%clk 0:02:18.4]} 20. Ne4 {[%clk 0:01:41.1]} 20... Kh8 {[%clk
0:02:08.9]} 21. Ng5 {[%clk 0:01:15]} 21... f5 {[%clk 0:02:03.9]} 22. Rad1 {[%clk
0:01:08.9]} 22... e4 {[%clk 0:01:53.3]} 23. b4 {[%clk 0:01:08.9]} 23... Bd7
{[%clk 0:01:42.5]} 24. Nf4 {[%clk 0:00:55.2]} 24... Bb5 {[%clk 0:01:34.5]} 25.
Rfe1 {[%clk 0:00:53.2]} 25... Bc4 {[%clk 0:01:31.8]} 26. Bxc4 {[%clk 0:00:30.6]}
26... Nxc4 {[%clk 0:01:33.7]} 27. d7 {[%clk 0:00:28.1]} 27... Bf6 {[%clk
0:01:28.7]} 28. Nge6 {[%clk 0:00:18.5]} 28... Rd8 {[%clk 0:01:11.9]} 29. Nxd8
{[%clk 0:00:19.4]} 29... Bxd8 {[%clk 0:01:12.7]} 30. Ne6 {[%clk 0:00:20.1]}
30... Ra8 {[%clk 0:01:07.4]} 31. Rc1 {[%clk 0:00:18.8]} 31... Nb6 {[%clk
0:01:06.1]} 32. Red1 {[%clk 0:00:19.3]} 32... Kg8 {[%clk 0:01:01.6]} 33. Rc6
{[%clk 0:00:20.3]} 1-0